Cogmind - Beta 11.1 @@@ ROGUE MODE // 2022.12.21 @ 01:04:29 Player: ktur Result: Destroyed by D-53 Grenadier with Mini Grenade Launcher Performance ------------- Evolutions (0) 0 Regions Visited (2) 400 Robots Destroyed (34) 170 Value Destroyed (628) 628 Prototype IDs (4) 80 Alien Tech Used (0) 0 Bonus (-193) -193 TOTAL SCORE: 1085 Bonus ------- Friendly Fire -193 Cogmind --------- Core Integrity 0/250 Matter 138/300 Energy 100/100 System Corruption 0% Temperature Cool (0) Movement Core (50) Location -10/Mines Parts ------- > --- POWER (1) -------- (None) > --- PROPULSION (2) --- (None) > --- UTILITY (2) ------ (None) > --- WEAPON (2) ------- (None) > --- INVENTORY (5) ---- High-capacity Matter Pod (200) Improved Targeting Computer Hacking Suite Assault Rifle Datajack Peak State ------------ > --- POWER ------------ Improved Ion Engine > --- PROPULSION ------- Light Treads Light Treads > --- UTILITY ---------- Large Storage Unit Improved Targeting Computer > --- WEAPON ----------- Small Laser Light Assault Rifle > --- INVENTORY -------- Ion Engine Improved Ion Engine Improved Ion Engine Aluminum Leg Aluminum Leg Compact Wheel Compact Wheel Improved Targeting Computer Improved Targeting Computer Heavy EM Pulse Gun Heavy EM Pulse Gun Heavy EM Pulse Gun Heavy EM Pulse Gun Light Assault Rifle Grenade Launcher [Rating: 11] Favorites ----------- Power Improved Ion Engine Engine Improved Ion Engine Propulsion Light Treads Treads Light Treads Utility Large Storage Unit Storage Large Storage Unit Processor Improved Targeting Computer Protection Light Armor Plating Weapon Light Assault Rifle Energy Gun Small Laser Ballistic Gun Light Assault Rifle Launcher Grenade Launcher Build | -11 -10 -10 ------- Run | Scr Mat Min Slots Evolved . | . . . Power . | . . . Propulsion . | . . . Utility . | . . . Weapon . | . . . Parts Attached 23 | 6 6 11 Power 3 | 1 1 1 Engine 3 | 1 1 1 Core . | . . . Reactor . | . . . Propulsion 3 | 2 . 1 Treads 3 | 2 . 1 Leg . | . . . Wheel . | . . . Hover . | . . . Flight . | . . . Utility 4 | 1 2 1 Device . | . . . Storage 2 | 1 1 . Processor 1 | . 1 . Hackware . | . . . Protection 1 | . . 1 Artifact . | . . . Weapon 13 | 2 3 8 Energy Gun 1 | 1 . . Energy Cannon . | . . . Ballistic Gun 6 | 1 2 3 Ballistic Cannon . | . . . Launcher 6 | . 1 5 Special Weapon . | . . . Impact Weapon . | . . . Slashing Weapon . | . . . Piercing Weapon . | . . . Special Melee Weapon . | . . . Unidentified Prototypes . | . . . Parts Lost 6 | . . 6 Power 2 | . . 2 Propulsion 3 | . . 3 Utility 1 | . . 1 Weapon . | . . . Highest Loss Streak 3 | . . 3 To Critical Strikes . | . . . Average Slot Usage (%) 93 | . 96 88 Engine 13 | . 14 12 Treads 25 | . 28 21 Storage 13 | . 14 13 Processor 11 | . 11 12 Energy Gun 6 | . 10 . Ballistic Gun 20 | . 17 24 Naked Turns 36 | . . 36 Heaviest Build 32 | 12 32 29 Greatest Support 40 | 40 40 40 Greatest Overweight (x) 1 | 1 . 1 Average Overweight (x) . | . . . Largest Inventory Capacity 15 | 8 15 15 Average Capacity 14 | 7 14 14 Most Carried 15 | 6 15 15 Average Carried 13 | 2 13 14 Final Capacity 15 | 8 15 5 Final Carried 15 | 6 15 5 Class Distribution -------------------- 100% | Mutant Dominant Class ---------------- Mutant | -10/Materials Mutant | -10/Mines Resources | -11 -10 -10 ----------- Run | Scr Mat Min Matter Collected 727 | 235 343 149 Remotely . | . . . Salvage Created 933 | . 646 287 Parts 63 | . 42 21 Haulers Intercepted 2 | . 2 . Recyclers Shooed 3 | . 3 . Parts Field Recycled . | . . . Retrieved Matter . | . . . Parts Self-Destructed . | . . . Prevented . | . . . Kills | -11 -10 -10 ------- Run | Scr Mat Min Combat Hostiles Destroyed 44 | . 12 32 Guns 12 | . 8 4 AOE 32 | . 4 28 Classes Destroyed 9 | . 6 3 Worker 1 | . . 1 Hauler 2 | . 2 . Recycler 3 | . 3 . Operator 1 | . 1 . Watcher 1 | . 1 . Swarmer 14 | . 6 8 Grunt 11 | . 6 5 Assembled 19 | . . 19 Guerrilla 1 | . . 1 Best Kill Streak 19 | . 6 19 Combat Bots Only 19 | . 5 19 Max Kills in Single Turn 7 | . 2 7 Gunslinging . | . . . Exploded 7 | . 2 7 Melee . | . . . Uniques/NPCs Destroyed . | . . . Combat | -11 -10 -10 -------- Run | Scr Mat Min Damage Taken 1227 | . 368 859 Core 270 | . 28 242 Absorbed by Shields . | . . . Core Remaining (%) 100 | 100 . . Volleys Fired 80 | . 46 34 Largest 2 | . 2 2 Hottest 60 | . 60 60 Shots Fired 149 | . 89 60 Gun 126 | . 86 40 Cannon . | . . . Launcher 23 | . 3 20 Special . | . . . Kinetic 92 | . 52 40 Thermal 34 | . 34 . Explosive 23 | . 3 20 Electromagnetic . | . . . Robot Hit Streak 15 | . 13 15 Robot Miss Streak 4 | . 4 2 Penetration Max . | . . . Secondary Targets 1 | . . 1 Max Gunslinging Chain 1 | . . 1 Shots Hit Robots 107 | . 62 45 Core Hits 117 | . 40 77 Critical Kills . | . . . Critical Parts Destroyed . | . . . Critical Strikes . | . . . Melee Attacks . | . . . Impact . | . . . Slashing . | . . . Piercing . | . . . Sneak Attacks . | . . . Combat Hostiles . | . . . Follow-up Attacks . | . . . Damage Inflicted 3127 | . 989 2138 Guns 801 | . 539 262 Cannons . | . . . Explosions 2283 | . 423 1860 Melee . | . . . Ramming 43 | . 27 16 Kinetic 550 | . 288 262 Thermal 251 | . 251 . Explosive 2283 | . 423 1860 Electromagnetic . | . . . Impact . | . . . Slashing . | . . . Piercing . | . . . Highest Corruption . | . . . Average Corruption . | . . . Corruption Purged . | . . . Corruption Blocked . | . . . Overload Shots . | . . . Overflow Damage 32 | . 12 20 Projectiles . | . . . Explosions 32 | . 12 20 Melee . | . . . Knockbacks 1 | . . 1 Impact 1 | . . 1 Kinetic . | . . . Secondary . | . . . Self-Inflicted Damage 103 | . 50 53 Shots 5 | . 3 2 Rammed 11 | . 7 4 Targets Rammed 11 | . 7 4 Kicked . | . . . Crushed . | . . . Highest Temperature 60 | . 60 30 Average Temperature 18 | . 21 10 Received Heat Transfer 264 | . 99 165 Siege Activations . | . . . Robots Corrupted . | . . . Combat Hostiles . | . . . Parts Fried . | . . . Impact Corruptions . | . . . Robots Melted . | . . . Combat Hostiles . | . . . Parts Melted 1 | . 1 . Heat Transferred 550 | . 550 . Parts Sabotaged . | . . . Parts Stolen . | . . . Parts Stripped . | . . . Power Chain Reactions . | . . . Missiles Intercepted . | . . . Alert | -11 -10 -10 ------- Run | Scr Mat Min Peak Influence 422 | . 283 422 Initial 78 | . . 78 Average 187 | . 154 252 Maximum Alert Level 2 | . 1 2 Low Security (%) 48 | 100 59 28 Level 1 50 | . 40 68 Level 2 1 | . . 2 Level 3 . | . . . Level 4 . | . . . Level 5 . | . . . High Security . | . . . Max Security . | . . . Squads Dispatched 3 | . 3 . Investigation 2 | . 2 . Extermination . | . . . Reinforcement 1 | . 1 . Assault . | . . . Garrison . | . . . Intercept . | . . . Searches Triggered . | . . . Construction Impeded . | . . . Haulers Reinforced . | . . . Active Scanning Responses . | . . . Cargo Convoy Interrupts . | . . . Stealth | -11 -10 -10 --------- Run | Scr Mat Min Distress Signals 3 | . 3 . Communications Jammed . | . . . Distress Signals . | . . . Times Spotted 56 | . 18 38 Peak Tracking Total 13 | . 6 13 Tactical Retreats 1 | . . 1 Traps | -11 -10 -10 ------- Run | Scr Mat Min Traps Triggered . | . . . Indirectly . | . . . Trap Hack Attempts . | . . . Triggered . | . . . Disarmed . | . . . Reprogrammed . | . . . Reused . | . . . Traps Extracted . | . . . Installed . | . . . Triggered . | . . . Machines | -11 -10 -10 ---------- Run | Scr Mat Min Machines Disabled 2 | . 1 1 Max in Single Turn 1 | . 1 1 Machines Sabotaged . | . . . Garrisons Compromised . | . . . Overloaded Fab Kills . | . . . Hacking | -11 -10 -10 --------- Run | Scr Mat Min Machines Accessed 9 | . 9 . Terminals 7 | . 7 . Fabricators . | . . . Repair Stations . | . . . Recycling Units 2 | . 2 . Scanalyzers . | . . . Garrison Access . | . . . Total Hacks 24 | . 24 . Successful 14 | . 14 . Failed 10 | . 10 . Catastrophic . | . . . Database Lockouts . | . . . Manual 17 | . 17 . Terminals 22 | . 22 . Fabricators . | . . . Repair Stations . | . . . Recycling Units 2 | . 2 . Scanalyzers . | . . . Garrison Access . | . . . Terminal Hacks 10 | . 10 . Part Schematic 2 | . 2 . Robot Analysis 2 | . 2 . Prototype ID Bank 2 | . 2 . Locate Traps 2 | . 2 . Patrol Status 1 | . 1 . Hauler Manifests 1 | . 1 . Fabricator Hacks . | . . . Repair Station Hacks . | . . . Recycling Unit Hacks . | . . . Scanalyzer . | . . . Garrison Access Hacks . | . . . Unauthorized Hacks 4 | . 4 . Terminals 2 | . 2 . Botnet 1 | . 1 . Operators 1 | . 1 . Fabricators . | . . . Repair Stations . | . . . Recycling Units 2 | . 2 . Tunnel 2 | . 2 . Scanalyzers . | . . . Garrison Access . | . . . Data Cores Recovered . | . . . Used . | . . . Hacking Detections 7 | . 7 . Full Trace Events . | . . . Feedback Events . | . . . Feedback Blocked . | . . . Robot Schematics Acquired . | . . . Robots Built . | . . . Authchips . | . . . Time . | . . . Total Robot Build Rating . | . . . Part Schematics Acquired 2 | . 2 . Parts Built . | . . . Authchips . | . . . Time . | . . . Total Part Build Rating . | . . . Parts Repaired . | . . . Time . | . . . Parts Recycled . | . . . Recycled Matter . | . . . Retrieved Matter . | . . . Retrieved Components . | . . . Parts Scanalyzed . | . . . Part Schematics Acquired . | . . . Parts Damaged . | . . . Bothacking | -11 -10 -10 ------------ Run | Scr Mat Min Used RIF Installer . | . . . Robots Hacked . | . . . Non-combat . | . . . Combat . | . . . Robot Hacks Applied . | . . . Relay Couplers Released . | . . . Fabnet Peak Effective % . | . . . Robots Rewired . | . . . Allies Hacked . | . . . Hacks Repelled . | . . . Allies | -11 -10 -10 -------- Run | Scr Mat Min Total Allies 2 | . . 2 Largest Group 2 | . . 2 Highest-Rated Group 42 | . . 42 Highest-Rated Ally 31 | . . 31 Total Orders . | . . . Ally Attacks . | . . . Total Damage . | . . . Kills . | . . . Allies Corrupted . | . . . Allies Melted . | . . . Intel | -11 -10 -10 ------- Run | Scr Mat Min Robot Analysis Total 2 | . 2 . Derelict Logs Recovered 2 | . . 2 Drone Launches . | . . . Drone Recoveries . | . . . Exploration | -11 -10 -10 ------------- Run | Scr Mat Min Turns Passed 1791 | 79 982 730 Spaces Moved 908 | 45 493 370 Core 78 | 8 . 70 Treads 830 | 37 493 300 Legs . | . . . Wheels . | . . . Hover . | . . . Flight . | . . . Fastest Speed 50 | 50 160 50 Average Speed 159 | 144 160 159 Slowest Speed 240 | 160 160 240 Overloaded Moves . | . . . Propulsion Burnouts . | . . . Robots Hopped . | . . . Cave-ins Triggered . | . . . Exploration Rate (%) 54 | 4 82 77 Regions Visited 2 Branch Regions 1 Pre-discovered Areas 2 | . 2 . Known Exits Taken . | . . . Unknown Exits Taken 2 | 1 1 . Scrap Searched . | . . . Spaces Dug 9 | . . 9 Terrain Destroyed 115 | . 5 110 Melee . | . . . Projectile . | . . . AOE 115 | . 5 110 Terrain Rammed . | . . . Walls Destroyed . | . . . Machines Disabled . | . . . Actions | -11 -10 -10 --------- Run | Scr Mat Min Total 1113 | 56 608 449 Wait 56 | . 26 30 Move 906 | 44 492 370 Hop . | . . . Pick Up 25 | 6 19 . Fast Attach 9 | 6 2 1 Attach 2 | . 1 1 Detach . | . . . Swap 12 | . 3 9 Drop 12 | . 12 . Fire 80 | . 46 34 Melee . | . . . Ram . | . . . Kick . | . . . Crush 11 | . 7 4 Escape Stasis . | . . . Rewire . | . . . Trap . | . . . Miscellaneous . | . . . Route ------- -11/Scrapyard -10/Materials (discovered 3 exits: [*Mat x2] / [*Min]) -10/Mines (discovered 2 exits: [*Mat x2]) History --------- Turn | Location | Event 8 | -11/Scrapyard | Discovered new exit (range 16) 80 | -11/Scrapyard | Entered Materials 315 | -10/Materials | Build established: Mutant 345 | -10/Materials | Discovered new exit (range 16) 719 | -10/Materials | Discovered new exit (range 7) 1054 | -10/Materials | Discovered new exit (range 5) 1062 | -10/Materials | Entered Mines 1151 | -10/Mines | Learned Materials garrison access intel 1153 | -10/Mines | Learned Materials garrison access intel 1283 | -10/Mines | Discovered new exit (range 2) 1411 | -10/Mines | Discovered new exit (range 11) 1495 | -10/Mines | Core integrity fell below 50% 1711 | -10/Mines | Assembled infested the area 1716 | -10/Mines | Assisted by a Guerilla fighting off Assembled 1756 | -10/Mines | Released all parts (3) 1758 | -10/Mines | Core integrity fell below 20% 1767 | -10/Mines | Destroyed 19 combat bots 1787 | -10/Mines | Lost 3 parts (1p1n1u) 1792 | -10/Mines | Destroyed by D-53 Grenadier with Mini Grenade Launcher Last Messages --------------- 01740_ as-66569 destroyed. 01740_ as-73183 destroyed. 01740_ as-57882 destroyed. 01740_ as-40138 destroyed. 01742_ The unstable cave ceiling collapses. 01743_ as-96789 destroyed. 01743_ Pressure Siphon disabled. 01746_ as-04109 destroyed. 01754_ The unstable cave ceiling collapses. 01756_ C-30 ARC bursts open, deploying its payload. 01756_ D-53 Grenadier unfolds itself. 01756_ Lgt. Armor Plating destroyed. 01756_ K-01 Serf destroyed. 01756_ Lgt. Treads destroyed. 01756_ Released Lrg. Storage Unit. 01756_ Released Grenade Launcher. 01757_ The unstable cave ceiling collapses. 01763_ Acquired 23 matter. 01768_ A pair of derelicts emerge from the shadows: "We're, um, lost. You wouldn't happen to know the way out of here, would you?" Map ----- +----------------------------------------------------+ | ?????????## #???????????????# #??# #???? | | ?????????# # #???????????????# ##??# #???? | | ?????????# #???????????????###????# ##### | | ?????????# #????????????????####### # # | | ?????????# " " #########? | | ?????????# # """* | #????????## ####### | | ???????? """!! #?????????????????#### | | ???????# #####"*""" ##### $#????????????????????# | | ???????# ????# #???# #????????????????????# | | ???????#?????# #???# #######??????????????# | | ?????????????# ???# #????????????? | | ?????????????# ?### ##### #????????????## | | ???????????? % ### # ##????????????# | | ??????????? ### ##???????????# | | ?????????? ##"## #?## = #??????????? | | ????????????##?# ##?## # #??????????? | | ???????????????# ???# ##### ##?????????? | | ???????????????# #### ##???# #???????????# | | ??????????????? ? d#?????# #???????????## | | ?????????????????? ##????# #????????????# | | ?????????????????## ##???# #????####????# | | ??????????????????# ##??# #???# ##???# | | ??????????????????# ## ???# #### #???## | | ??????????????????# ### #????# ## #????? | | ?????????????????## ### ######g ##???? | | ?????????????????# @ #???? | | ?????????????????# ########### #???? | | ?????????????????## ##?????????# ##???? | | ??????????????????####??????????# #######????? | | ????????????????????????????????## ##??????????? | | ?????????????????????????????????#####???????????? | | ?????????????????????????????????????????????????? | | | | | | | | | | | | | | | | | | | | | | | | | | | | | | | | | | | | | +----------------------------------------------------+ Best States ------------- Heat Dissipation 25 Energy Generation 12 Energy Capacity 265 Matter Stores 300 Matter Capacity 300 Sight Range 16 Terrain Scan Density 10 Armor Coverage 150 Evasion (%) 50 Targeting Accuracy 6 Recoil Reduction 2 Item Schematics ----------------- Huge Storage Unit | -10/Materials | Hacked Lgt. Armor Plating | -10/Materials | Hacked Robot Schematics ------------------ None Fabricated ------------ Nothing Alien Tech Used ----------------- None Achievements -------------- None Challenges ------------ None Game ------ Seed SpikedFluxScanner Manual? 0 Play Time 00:13:14 Cumulative 602.7 hours Start 2022.12.21 @ 00:49:34 End 2022.12.21 @ 01:04:29 Sessions 1 Manual Loads 0 Difficulty Rogue Special Mode None Game No. 558 Rogue 558 Adventurer 0 Explorer 0 Win Type - Total 28 Types 14/2/7/2/0/0/1/1/1 Lore% 94 Gallery% 94 Achievement% 80 Wizard Run 0 Options --------- ASCII 0 Keyboard 0 Movement Arrows Keybinds 0 Fullscreen 1 Font 18/Smallcaps Map View 76x50 Tactical HUD 1 Map Filters NONE Filters NONE Steam 1 RUN: c0cf9805-abef-4452-8705-8b9f24162eb2